Cogmind - Beta 14 @@@ ROGUE MODE // 2024.08.09 @ 17:52:27 Player: Vivisector9999 Result: Destroyed by Y-45 Defender with Beam Rifle Performance ------------- Evolutions (1) 500 Regions Visited (2) 400 Robots Destroyed (30) 150 Value Destroyed (841) 841 Prototype IDs (0) 0 Alien Tech Used (0) 0 Bonus (0) 0 TOTAL SCORE: 1891 Bonus ------- None Cogmind --------- Core Integrity 0/400 Matter 238/300 Energy 265/265 System Corruption 8% Temperature Cool (9) Movement Treading (160) Location -9/Materials Parts ------- > --- POWER (1) -------- Improved Ion Engine > --- PROPULSION (3) --- Light Treads > --- UTILITY (3) ------ (None) > --- WEAPON (2) ------- Hammer > --- INVENTORY (5) ---- Improved Ion Engine Improved Ion Engine Light Treads Light Treads Light Treads Peak State ------------ > --- POWER ------------ Improved Ion Engine > --- PROPULSION ------- Aluminum Leg Aluminum Leg > --- UTILITY ---------- Small Storage Unit Sensor Array Core Shielding > --- WEAPON ----------- Spread Laser Spread Laser > --- INVENTORY -------- Improved Ion Engine Improved Ion Engine Wheel High-capacity Matter Pod Light Armor Plating Particle Gun Hammer [Rating: 12] Favorites ----------- Power Improved Ion Engine Engine Improved Ion Engine Propulsion Aluminum Leg Treads Light Treads Leg Aluminum Leg Wheel Wheel Utility Sensor Array Device Sensor Array Storage Small Storage Unit Protection Core Shielding Weapon Spread Laser Energy Gun Spread Laser Ballistic Gun Light Assault Rifle Ballistic Cannon Light Cannon Launcher EMP Blaster Impact Weapon Hammer Build | -11 -10 -9 ------- Run | Yrd Mat Mat Slots Evolved 2 | . . 2 Power . | . . . Propulsion 1 | . . 1 Utility 1 | . . 1 Weapon . | . . . Parts Attached 34 | 6 10 18 Power 6 | 1 2 3 Engine 6 | 1 2 3 Core . | . . . Reactor . | . . . Propulsion 6 | 2 2 2 Treads 1 | . . 1 Leg 3 | . 2 1 Wheel 2 | 2 . . Hover . | . . . Flight . | . . . Utility 8 | 1 2 5 Device 3 | . 2 1 Storage 2 | 1 . 1 Processor . | . . . Hackware . | . . . Protection 3 | . . 3 Artifact . | . . . Weapon 14 | 2 4 8 Energy Gun 8 | 2 4 2 Energy Cannon . | . . . Ballistic Gun 1 | . . 1 Ballistic Cannon 1 | . . 1 Launcher 2 | . . 2 Special Weapon . | . . . Impact Weapon 2 | . . 2 Slashing Weapon . | . . . Piercing Weapon . | . . . Special Melee Weapon . | . . . Unidentified Prototypes . | . . . Parts Lost 17 | . 2 15 Power 1 | . . 1 Propulsion 3 | . . 3 Utility 5 | . . 5 Weapon 8 | . 2 6 Highest Loss Streak 4 | . 2 4 To Critical Strikes . | . . . Average Slot Usage (%) 82 | . 95 75 Engine 11 | . 13 11 Leg 17 | . 20 15 Wheel 2 | . 7 . Device 12 | . 12 12 Storage 8 | . 14 5 Protection 5 | . . 8 Energy Gun 18 | . 26 14 Ballistic Cannon 1 | . . 2 Launcher 1 | . . 2 Impact Weapon 1 | . . 1 Peak Build Rating 12 | 6 10 12 Average Rating 8 | 4 8 9 On Entrance 5 | . 6 10 Naked Turns . | . . . Heaviest Build 20 | 12 19 20 Greatest Support 20 | 20 20 20 Greatest Overweight (x) 5 | . 1 5 Average Overweight (x) . | . . . Largest Inventory Capacity 8 | 8 8 8 Average Capacity 6 | 6 8 6 Most Carried 8 | 5 8 8 Average Carried 5 | 2 5 5 Final Capacity 8 | 8 8 5 Final Carried 5 | 4 4 5 Class Distribution -------------------- 100% | Mutant Dominant Class ---------------- Mutant | -10/Materials Mutant | -9/Materials Resources | -11 -10 -9 ----------- Run | Yrd Mat Mat Matter Collected 632 | 260 90 282 Remotely . | . . . Salvage Created 924 | . 131 793 Parts 62 | . 5 57 Haulers Intercepted 1 | . . 1 Recyclers Shooed 1 | . . 1 Parts Field Recycled . | . . . Retrieved Matter . | . . . Parts Self-Destructed . | . . . Prevented . | . . . Kills | -11 -10 -9 ------- Run | Yrd Mat Mat Combat Hostiles Destroyed 25 | . 3 22 Guns 15 | . 3 12 Cannons 4 | . . 4 AOE 4 | . . 4 Classes Destroyed 9 | . 1 8 Builder 1 | . . 1 Tunneler 1 | . . 1 Hauler 1 | . . 1 Operator 1 | . . 1 Watcher 1 | . . 1 Swarmer 6 | . . 6 Grunt 12 | . 3 9 Brawler 2 | . . 2 Sentry 5 | . . 5 Best Kill Streak 5 | . 1 5 Combat Bots Only 5 | . 1 5 Max Kills in Single Turn 2 | . 1 2 Gunslinging . | . . . Exploded 1 | . . 1 Melee . | . . . Uniques/NPCs Destroyed . | . . . Combat | -11 -10 -9 -------- Run | Yrd Mat Mat Hostile Shots Fired 181 | . 31 150 Missed 45 | . 9 36 Damage Taken 1901 | . 233 1668 Core 429 | . 23 406 Absorbed by Shields . | . . . Redirected to Shielding 29 | . . 29 Core Remaining (%) 95 | 100 90 . Volleys Fired 91 | . 20 71 Largest 2 | . 2 2 Hottest 130 | . 130 130 Shots Fired 138 | . 30 108 Gun 104 | . 30 74 Cannon 25 | . . 25 Launcher 9 | . . 9 Special . | . . . Kinetic 32 | . . 32 Thermal 75 | . 8 67 Explosive . | . . . Electromagnetic 31 | . 22 9 Robot Hit Streak 7 | . 5 7 Robot Miss Streak 7 | . 4 7 Penetration Max . | . . . Secondary Targets . | . . . Shots Hit Robots 99 | . 18 81 Core Hits 75 | . 10 65 Critical Kills . | . . . Critical Parts Destroyed . | . . . Critical Strikes 4 | . 1 3 Burn 2 | . . 2 Blast 1 | . . 1 Corrupt 1 | . 1 . Melee Attacks 7 | . . 7 Impact 7 | . . 7 Slashing . | . . . Piercing . | . . . Sneak Attacks . | . . . Combat Hostiles . | . . . Follow-up Attacks . | . . . Damage Inflicted 1729 | . 234 1495 Guns 1007 | . 234 773 Cannons 241 | . . 241 Explosions 382 | . . 382 Melee 99 | . . 99 Ramming . | . . . Kinetic 287 | . . 287 Thermal 791 | . 64 727 Explosive 124 | . . 124 Electromagnetic 428 | . 170 258 Impact 99 | . . 99 Slashing . | . . . Piercing . | . . . Highest Corruption 8 | . . 8 Average Corruption 7 | . . 7 Corruption Purged . | . . . Corruption Blocked . | . . . Effects 20 | . . 20 Message Errors 5 | . . 5 Matter Fused 4 | . . 4 Heat Flow Errors 3 | . . 3 Energy Discharges 4 | . . 4 Data Loss (minor) 1 | . . 1 Data Loss (major) 1 | . . 1 Alerts 1 | . . 1 Weapon Failures 1 | . . 1 Overload Shots . | . . . Overflow Damage 136 | . . 136 Projectiles . | . . . Explosions 119 | . . 119 Melee 17 | . . 17 Knockbacks 1 | . . 1 Impact . | . . . Kinetic 1 | . . 1 Secondary . | . . . Self-Inflicted Damage 221 | . . 221 Shots 3 | . . 3 Rammed . | . . . Targets Rammed . | . . . Kicked . | . . . Crushed . | . . . Highest Temperature 328 | . 265 328 Average Temperature 106 | . 135 97 Received Heat Transfer 561 | . 108 453 Effects 3 | . . 3 Energy Bleed 2 | . . 2 Interference 1 | . . 1 Siege Activations . | . . . Robots Corrupted 1 | . . 1 Combat Hostiles 1 | . . 1 Parts Fried 1 | . . 1 Impact Corruptions 1 | . . 1 Robots Melted 1 | . . 1 Combat Hostiles 1 | . . 1 Parts Melted 2 | . . 2 Heat Transferred 1408 | . 80 1328 Parts Sabotaged . | . . . Parts Stolen . | . . . Parts Stripped . | . . . Power Chain Reactions 1 | . . 1 Alert | -11 -10 -9 ------- Run | Yrd Mat Mat Peak Influence 342 | . 41 342 Initial 12 | . . 12 Average 90 | . 9 134 Maximum Alert Level 1 | . . 1 Low Security (%) 83 | 100 100 74 Level 1 16 | . . 25 Level 2 . | . . . Level 3 . | . . . Level 4 . | . . . Level 5 . | . . . High Security . | . . . Max Security . | . . . Squads Dispatched 3 | . 2 1 Investigation 2 | . 2 . Extermination . | . . . Reinforcement 1 | . . 1 Assault . | . . . Garrison . | . . . Intercept . | . . . Searches Triggered . | . . . Construction Impeded . | . . . Haulers Reinforced . | . . . Active Scanning Responses . | . . . Cargo Convoy Interrupts . | . . . Stealth | -11 -10 -9 --------- Run | Yrd Mat Mat Distress Signals 4 | . . 4 Communications Jammed . | . . . Distress Signals . | . . . Times Spotted 40 | . 7 33 Peak Tracking Total 9 | . 3 9 Tactical Retreats 1 | . . 1 Traps | -11 -10 -9 ------- Run | Yrd Mat Mat Traps Triggered 5 | . 5 . Indirectly . | . . . Trap Hack Attempts . | . . . Triggered . | . . . Disarmed . | . . . Reprogrammed . | . . . Reused . | . . . Traps Extracted . | . . . Installed . | . . . Triggered . | . . . Machines | -11 -10 -9 ---------- Run | Yrd Mat Mat Machines Disabled 3 | . . 3 Max in Single Turn 3 | . . 3 Machines Repaired . | . . . Machines Dismantled . | . . . Machines Sabotaged . | . . . Overloaded Fab Kills . | . . . Hacking | -11 -10 -9 --------- Run | Yrd Mat Mat Machines Accessed 10 | . 4 6 Terminals 9 | . 3 6 Fabricators . | . . . Repair Stations 1 | . 1 . Recycling Units . | . . . Scanalyzers . | . . . Garrison Access . | . . . Total Hacks 24 | . 10 14 Successful 6 | . 3 3 Failed 18 | . 7 11 Catastrophic 9 | . 2 7 Database Lockouts . | . . . Manual 16 | . 6 10 Terminals 23 | . 9 14 Fabricators . | . . . Repair Stations 1 | . 1 . Recycling Units . | . . . Scanalyzers . | . . . Garrison Access . | . . . Terminal Hacks 6 | . 3 3 Record 2 | . 2 . Branch Access Points 1 | . 1 . Alert Level 3 | . . 3 Fabricator Hacks . | . . . Repair Station Hacks . | . . . Recycling Unit Hacks . | . . . Scanalyzer . | . . . Garrison Access Hacks . | . . . Unauthorized Hacks . | . . . Terminals . | . . . Fabricators . | . . . Repair Stations . | . . . Recycling Units . | . . . Scanalyzers . | . . . Garrison Access . | . . . Data Cores Recovered . | . . . Used . | . . . Hacking Detections 10 | . 4 6 Full Trace Events . | . . . Feedback Events . | . . . Feedback Blocked . | . . . Robot Schematics Acquired . | . . . Robots Built . | . . . Authchips . | . . . Time . | . . . Total Robot Build Rating . | . . . Part Schematics Acquired . | . . . Parts Built . | . . . Authchips . | . . . Time . | . . . Total Part Build Rating . | . . . Parts Repaired . | . . . Time . | . . . Parts Recycled . | . . . Recycled Matter . | . . . Retrieved Matter . | . . . Retrieved Components . | . . . Parts Scanalyzed . | . . . Part Schematics Acquired . | . . . Parts Damaged . | . . . Bothacking | -11 -10 -9 ------------ Run | Yrd Mat Mat Used RIF Installer . | . . . Robots Hacked . | . . . Non-combat . | . . . Combat . | . . . Robot Hacks Applied . | . . . Relay Couplers Released . | . . . Fabnet Peak Effective % . | . . . Robots Rewired . | . . . Allies Hacked . | . . . Hacks Repelled . | . . . Allies | -11 -10 -9 -------- Run | Yrd Mat Mat Total Allies . | . . . Largest Group . | . . . Highest-Rated Group . | . . . Highest-Rated Ally . | . . . Total Orders . | . . . Ally Attacks . | . . . Total Damage . | . . . Kills . | . . . Allies Corrupted . | . . . Allies Melted . | . . . Intel | -11 -10 -9 ------- Run | Yrd Mat Mat Robot Analysis Total . | . . . Derelict Logs Recovered . | . . . Drone Launches . | . . . Drone Recoveries . | . . . Exploration | -11 -10 -9 ------------- Run | Yrd Mat Mat Turns Passed 1418 | 61 428 929 Spaces Moved 877 | 60 322 495 Core 37 | 9 3 25 Treads 54 | . . 54 Legs 616 | . 200 416 Wheels 170 | 51 119 . Hover . | . . . Flight . | . . . Fastest Speed 50 | 50 80 120 Average Speed 118 | 75 105 133 Slowest Speed 300 | 80 120 300 Overloaded Moves . | . . . Propulsion Burnouts . | . . . Robots Hopped . | . . . Cave-ins Triggered . | . . . Exploration Rate (%) 37 | 4 45 62 Regions Visited 2 Branch Regions . Pre-discovered Areas . | . . . Known Exits Taken . | . . . Unknown Exits Taken 2 | 1 1 . Scrap Searched . | . . . Spaces Dug . | . . . Terrain Destroyed 43 | . . 43 Melee . | . . . Projectile . | . . . AOE 43 | . . 43 Terrain Rammed . | . . . Walls Destroyed . | . . . Machines Disabled . | . . . Actions | -11 -10 -9 --------- Run | Yrd Mat Mat Total 1102 | 75 383 644 Wait 49 | . 15 34 Move 875 | 59 321 495 Hop . | . . . Pick Up 39 | 10 13 16 Fast Attach . | . . . Attach 26 | 6 9 11 Detach . | . . . Swap 8 | . 1 7 Drop 7 | . 4 3 Fire 91 | . 20 71 Melee 7 | . . 7 Ram . | . . . Kick . | . . . Crush . | . . . Escape Stasis . | . . . Rewire . | . . . Trap . | . . . Miscellaneous . | . . . Route ------- -11/Scrapyard -10/Materials (discovered 2 exits: *Mat / Min) -9/Materials History --------- Turn | Location | Event 28 | -11/Scrapyard | Discovered new exit (range 16) 62 | -11/Scrapyard | Entered Materials 264 | -10/Materials | Identified exit to Mines 310 | -10/Materials | Build established: Mutant 464 | -10/Materials | Discovered new exit (range 16) 490 | -10/Materials | Entered another Materials area 490 | -9/Materials | Evolved 2 slots: Propulsion x1, Utility x1 997 | -9/Materials | Lost 4 parts (1p1n2u) 1202 | -9/Materials | Core integrity fell below 50% 1217 | -9/Materials | Lost 3 parts (1n1u1w) 1414 | -9/Materials | Core integrity fell below 20% 1419 | -9/Materials | Destroyed by Y-45 Defender with Beam Rifle Last Messages --------------- 01366_ U-05 Engineer lays Concrete. 01366_ S-10 Pest destroyed. 01368_ Destroyed Flight Unit. 01368_ S-10 Pest destroyed. 01378_ System corrupted: Energy discharge (-29). 01399_ JNZOKD4DXGV0BFEBPRSVM6UW S>/ERP # 01404_ U-05 Engineer builds a Wall. 01407_ U-05 Engineer repairs door. 01413_ Nuclear Reactor explodes. 01413_ EMP Blaster destroyed. 01413_ Destroyed EMP Blaster. 01413_ Sensor Array destroyed. 01413_ Destroyed Sensor Array. 01413_ Destroyed Heat Sink. 01413_ Terminal disabled. 01413_ T-07 Excavator destroyed. 01413_ Critical hit (Burn: +37). 01414_ U-05 Engineer lays Concrete. 01417_ The unstable cave ceiling collapses. 01417_ U-05 Engineer lays Concrete. Map ----- +----------------------------------------------------+ | ?????????????????????????????????????????????????? | | ?????????????????????????????????????????????????? | | ?????????????????????????????????????????????????? | | ?????????????????????????????????????????????????? | | ?????????????????????????????????????????????????? | | ?????????????????????????????????????????????????? | | ?????????????????????????????????????????????????? | | ?????????????????????????????????????????????????? | | ?????????????????????????????????????????????????? | | ?????????????????????????????????????????????????? | | ?????????????????????????????????????????????????? | | ?????????????????????????????????????????????????? | | ?????????????????????????????????????????????????? | | ?????????????????????????????????????????????????? | | ?????????????????????????????????????????????????? | | ?????????????????????????????????????????????????? | | ?????????????????????????????????????????????????? | | ?????????????????????????????????????????????????? | | ?????????????????????????????????????????????????? | | ?????????????????????????????????????????????????? | | ??????????????????????########???????????????????? | | #### ?????????????#### ##??????????????????? | | ????????????## #??????????????????? | | ????????????# Y #??????????????????? | | ""????????? ??# ##?????????????????? | | """?????????""" # @ #?????????????????? | | R"?????????""" ##?????????????????? | | """ #??????""" #########??????????? | | #? [ #??????????? | | #? = ^ [ """ #??????????? | | #??##/##### = # """ #??????????? | | ?=%= =%! # """ #??????????? | | ? ! %= u + #??????????? | | ?? =%[ # """ #??????????? | | ?? ############# # """ #??????????? | | ########???### #???????????# # """ #??????????? | | #???????# #???????????# # #??????????? | | #???????# #???????????# ##########??????????? | | #???????# #?########### # T #??????????????? | | / #???????# #?# """ + + #??????????????? | | ######???????# #?# """ # # #??????????????? | | ############## #?# """ # # #??????????????? | | ### # # #??????????????? | | [# " " # # #??????????????? | | % % [[!*+ "Y" # # #??????????????? | | ![%[*%# """ # # #??????????????? | | %####+#####!%!# # ######??????????????? | | *#????????# ! ###### #### #???????????????????? | | #????????# #????###??? ????????????????????? | | #????????#% #?????????? ????????????????????? | +----------------------------------------------------+ Best States ------------- Heat Dissipation 38 Energy Generation 12 Energy Capacity 265 Matter Stores 300 Matter Capacity 300 Sight Range 16 Robot Scan Range 14 Terrain Scan Density 10 Armor Coverage 150 Core Shielding 20 Evasion (%) 55 Recoil Reduction 1 Item Schematics ----------------- None Robot Schematics ------------------ None Fabricated ------------ Nothing Alien Tech Used ----------------- None Achievements -------------- None Challenges ------------ None Game ------ Seed AlphaThunderMinigun Manual? 0 Play Time 00:23:37 Cumulative 3.7 hours Start 2024.08.09 @ 17:26:27 End 2024.08.09 @ 17:52:27 Sessions 1 Manual Loads 0 Difficulty Rogue Special Mode None Game No. 6 Rogue 6 Adventurer 0 Explorer 0 Win Type - Total 0 Types 0/0/0/0/0/0/0/0/0 Lore% 6 Gallery% 5 Achievement% 19 Wizard Run 0 Options --------- Layout 1 ASCII 0 Keyboard 0 Movement Numpad Keybinds 0 Fullscreen 1 Font 24/Smallcaps Map View 50x35 Zoom Use 0% Tactical HUD 1 Map Filters NONE Filters NONE Steam 1 RUN: 6c3b55fe-fe9f-49b2-b0d5-304b7187ceff